bitfinex/quotes_ETHUSD_20220309
["timestamp","ask_amount","ask_price","bid_price","bid_amount"]
[1646802591152,0.97535733,2721.8,2721.1,0.18117644]
[1646802593396,0.97535733,2721.8,2721.3,0.00591991]
[1646802594002,12.25535733,2721.8,2721.3,0.00591991]
[1646802594202,12.25535733,2721.8,2719.6,5.0392056]
[1646802594203,6.0,2721.5,2719.6,5.0392056]
[1646802594402,6.0,2721.5,2720.1,3.1196]
[1646802594403,3.0,2721.3,2720.1,3.1196]
[1646802594604,5.44997461,2721.2,2720.1,3.1196]
[1646802594804,0.0128432,2720.9,2719.5,2.7151]
[1646802595001,0.4578432,2720.9,2719.5,2.7151]
[1646802595203,0.445,2720.9,2719.6,1.83816]
[1646802595402,0.445,2720.9,2719.7,0.3691]
[1646802595802,1.1891,2721.1,2720.0,1.2880947]
[1646802595803,1.07256467,2721.0,2720.0,1.2880947]
[1646802596003,1.07256467,2721.0,2720.2,0.91903]
[1646802596271,2.7963,2721.5,2720.2,1.21903]
[1646802596272,2.3513,2721.5,2720.2,1.21903]
[1646802596457,4.6324,2721.7,2720.5,0.91878]
[1646802596856,4.6324,2721.7,2720.5,1.21878]
[1646802597361,0.92261539,2721.3,2720.5,0.00594167]
[1646802597757,0.92261539,2721.3,2720.4,1.83774]
[1646802597957,3.5,2721.2,2720.4,1.83774]
[1646802598157,0.92261539,2721.3,2720.8,0.00594101]
[1646802598559,3.5,2721.2,2720.8,0.00594101]
[1646802598963,4.6823,2721.2,2720.0,1.83802]
[1646802599367,15.9623,2721.2,2720.9,0.00638298]
[1646802599564,15.9623,2721.2,2720.9,8.298e-05]
[1646802599565,11.28,2721.0,2720.9,8.298e-05]
[1646802599762,16.14790576,2721.0,2720.9,8.298e-05]
[1646802600004,15.36973651,2721.0,2720.9,8.298e-05]
[1646802600200,15.36973651,2721.0,2719.5,4.05746027]
[1646802600201,15.55343651,2721.0,2719.5,4.05746027]
[1646802600409,15.55343651,2721.0,2719.5,2.7151]
[1646802600410,11.2808,2720.8,2719.5,2.7151]
[1646802600602,11.28,2720.6,2719.5,2.7151]
[1646802600803,3.5,2720.5,2719.5,2.7151]
[1646802601007,0.89422576,2720.2,2719.5,2.7151]
[1646802601202,0.89422576,2720.2,2719.4,2.9131]
[1646802602702,0.89422576,2720.2,2719.4,2.4601]
[1646802603402,0.89422576,2720.2,2719.6,0.91934]
[1646802604058,0.89422576,2720.2,2719.8,0.00678835]
[1646802604456,3.6837,2720.5,2719.8,0.00678835]
[1646802605159,3.6837,2720.5,2719.4,2.4601]
[1646802605356,3.6837,2720.5,2720.0,0.00678777]
[1646802605656,1.15841204,2720.2,2720.0,0.00678777]
[1646802606257,1.15841204,2720.2,2719.4,2.4601]
[1646802606456,1.15841204,2720.2,2720.0,0.00678788]
[1646802606657,3.5,2720.5,2720.0,0.00678788]
[1646802606856,0.55608868,2720.6,2720.0,0.00678788]
[1646802607255,3.5,2720.5,2720.0,0.00678788]
[1646802607499,3.5,2720.5,2719.5,0.9194]
[1646802607709,1.09782221,2720.3,2720.2,0.00678742]
[1646802607901,0.55608868,2720.6,2720.2,0.00678742]
[1646802608704,0.55608868,2720.6,2719.8,0.91929]
[1646802608907,0.55608868,2720.6,2720.3,0.00657848]
[1646802609507,4.05608868,2720.6,2720.3,0.00657848]
[1646802609808,4.05608868,2720.6,2719.5,0.1837]
[1646802609809,0.55608868,2720.6,2719.5,0.1837]
[1646802610006,4.05608868,2720.6,2719.5,0.1837]
[1646802610210,4.05608868,2720.6,2720.3,0.00657837]
[1646802610408,0.55608868,2720.6,2720.3,0.00657837]
[1646802611257,0.55608868,2720.6,2719.5,0.1837]
[1646802611450,0.55608868,2720.6,2720.3,0.00657837]
[1646802611848,4.05608868,2720.6,2720.3,0.00657837]
[1646802612349,4.20082519,2720.6,2719.4,2.6438]
[1646802612548,15.48082519,2720.6,2719.4,2.4601]
[1646802612751,0.1837,2720.5,2720.3,0.00633513]
[1646802613549,0.1837,2720.5,2719.4,2.4601]
[1646802613747,0.94374247,2720.0,2719.4,2.4601]
[1646802613952,0.94374247,2720.0,2719.1,1.52606027]
[1646802614152,0.94374247,2720.0,2719.1,6.13980239]
[1646802614353,0.94374247,2720.0,2719.1,4.79744212]
[1646802614553,0.94374247,2720.0,2719.1,0.1837]
[1646802614752,0.94374247,2720.0,2719.0,4.42759062]
[1646802615403,0.94374247,2720.0,2719.0,4.24389062]
[1646802616001,0.94374247,2720.0,2719.1,0.1837]
[1646802616200,0.94374247,2720.0,2719.4,0.00635836]
[1646802616406,0.1837,2720.3,2719.4,0.00635836]
[1646802616802,6.9873,2720.4,2719.4,0.00635836]
[1646802617203,6.9873,2720.4,2719.3,0.91946]
[1646802617403,6.9873,2720.4,2719.7,0.0063576]
[1646802617604,1.06573323,2720.2,2719.7,0.0063576]
[1646802618204,0.1837,2720.3,2719.7,0.0063576]
[1646802618604,0.1837,2720.3,2719.8,0.00635738]
[1646802619357,0.91145219,2720.1,2719.8,0.00635738]
[1646802619557,0.91145219,2720.1,2719.4,1.83868]
[1646802619759,0.91145219,2720.1,2719.9,0.00627017]
[1646802620662,0.91145219,2720.1,2719.1,1.47232]
[1646802621059,0.91145219,2720.1,2719.9,0.00627028]
[1646802623100,0.91145219,2720.1,2719.1,1.10322]
[1646802623303,0.91145219,2720.1,2719.9,0.00628365]
[1646802624305,0.91145219,2720.1,2719.1,1.10322]
[1646802624506,0.91145219,2720.1,2719.9,0.00628365]
[1646802625607,0.91145219,2720.1,2719.1,1.10322]
[1646802625810,3.5,2720.0,2719.9,0.00628365]
[1646802626008,0.91145219,2720.1,2719.9,0.00628365]
[1646802626658,0.91145219,2720.1,2719.1,1.10322]
[1646802627060,0.91145219,2720.1,2719.9,0.00635616]
[1646802627260,0.91027706,2720.1,2719.9,0.00635616]
[1646802628062,3.5,2720.0,2719.9,0.01271232]
[1646802628262,3.5,2720.0,2719.9,0.00635616]
[1646802629069,3.5,2720.0,2719.1,0.1837]
[1646802629268,1.08836608,2719.4,2719.1,0.1837]
[1646802630001,0.996426,2719.4,2719.1,0.1837]
[1646802630601,0.996426,2719.4,2719.1,0.19005537]
[1646802631300,4.9012,2720.0,2719.1,0.19005537]
[1646802631500,4.9012,2720.0,2719.1,0.1837]
[1646802631701,4.9012,2720.0,2719.1,0.19005537]
[1646802632700,4.9012,2720.0,2719.1,0.1837]
[1646802632906,0.88050465,2719.4,2719.1,0.1837]
[1646802635053,3.5,2719.3,2719.1,0.1837]
[1646802635453,0.88050465,2719.4,2719.1,0.1837]
[1646802635954,3.5,2719.3,2719.1,0.1837]
[1646802636157,3.5,2719.3,2718.6,2.9145]
[1646802636355,1.91718485,2719.4,2718.2,7.76616027]
[1646802636556,3.5,2719.3,2718.2,3.9857]
[1646802636757,3.5,2719.3,2718.2,5.32806027]
[1646802637604,0.92679606,2718.9,2718.2,5.32806027]
[1646802637903,0.92679606,2718.9,2718.6,0.00676597]
[1646802638705,0.92679606,2718.9,2718.2,1.34236027]
[1646802638908,0.92679606,2718.9,2718.6,0.00676597]
[1646802640009,0.92679606,2718.9,2718.2,1.34236027]
[1646802640209,0.92679606,2718.9,2718.6,0.00676597]
[1646802640811,4.5,2718.8,2717.9,3.63012261]
[1646802641012,4.5,2718.8,2717.9,1.79041261]
[1646802642651,4.5,2718.8,2718.2,0.00609224]
[1646802643454,1.1768,2719.0,2718.2,0.00609224]
[1646802643757,6.9011,2719.3,2718.2,8.72428485]
[1646802643758,2.4742,2719.3,2718.2,8.72428485]
[1646802643959,3.651,2719.3,2718.6,0.91962]
[1646802645001,0.94770443,2719.0,2718.6,0.91962]
[1646802645802,0.94770443,2719.0,2718.5,0.00654309]
[1646802646204,0.94770443,2719.0,2718.5,0.01326717]
[1646802646402,0.94770443,2719.0,2718.5,0.00672408]
[1646802648106,4.5,2718.9,2718.1,1.74627408]
[1646802648769,4.5,2718.9,2718.5,0.00672408]
[1646802648962,4.48,2718.9,2718.5,0.00672408]
[1646802649362,8.2769,2719.3,2718.5,0.00672408]
[1646802649564,1.3607,2719.3,2718.4,3.8691]
[1646802649765,1.1768,2719.3,2718.4,1.83932]
[1646802649966,1.18186923,2719.3,2718.4,1.84565357]
[1646802650362,0.98007496,2719.2,2718.4,1.84565357]
[1646802650565,0.98007496,2719.2,2718.4,0.00633357]
[1646802650763,1.09259597,2718.7,2718.4,0.00633357]
[1646802650964,1.09259597,2718.7,2718.4,0.01266716]
[1646802651164,1.09259597,2718.7,2718.4,0.00633359]
[1646802651964,1.09259597,2718.7,2718.1,1.34617896]
[1646802652165,1.09259597,2718.7,2718.4,0.00633355]
[1646802653311,1.09259597,2718.7,2718.1,1.34617896]
[1646802653508,1.09259597,2718.7,2718.4,0.00627486]
[1646802653912,1.63922927,2718.7,2718.4,0.00627486]
[1646802654112,1.09259597,2718.7,2718.4,0.00627486]
[1646802654316,0.1839,2719.2,2718.4,0.00627486]
[1646802654713,0.1839,2719.2,2718.4,0.01255524]
[1646802654913,0.1839,2719.2,2718.4,0.00628038]
[1646802655615,0.94327819,2718.7,2718.3,0.9198]
[1646802655815,0.94327819,2718.7,2718.4,0.00628042]
[1646802656660,0.1839,2719.2,2718.3,0.9198]
[1646802657061,0.1839,2719.2,2718.4,0.00625943]
[1646802657862,1.08358066,2718.6,2718.3,0.9198]
[1646802658465,1.08358066,2718.6,2718.4,0.00625868]
[1646802659164,0.1839,2719.2,2718.3,1.83952]
[1646802659367,0.1839,2719.2,2718.4,0.00625863]
[1646802659565,0.1839,2719.2,2718.6,0.9197]
[1646802660005,0.1839,2719.2,2718.4,1.84561863]
[1646802660205,1.00025904,2718.7,2718.4,1.84561863]
[1646802660406,0.1839,2719.2,2718.4,1.83936]
[1646802660605,0.1839,2719.2,2718.4,1.84562015]
[1646802661406,1.23288484,2718.9,2718.4,1.84562015]
[1646802661607,1.23288484,2718.9,2718.4,1.83936]
[1646802661807,1.23288484,2718.9,2718.4,1.84562026]
[1646802662807,1.23288484,2718.9,2718.4,1.83936]
[1646802663007,1.23288484,2718.9,2718.4,1.84562024]
[1646802663207,3.49943386,2719.3,2718.4,1.84562024]
[1646802663861,3.49943386,2719.3,2718.4,1.83936]
[1646802664063,3.4943,2719.3,2718.4,1.83936]
[1646802664666,3.4943,2719.3,2718.4,5.33936]
[1646802664862,3.4943,2719.3,2718.4,1.83936]
[1646802665061,3.4943,2719.3,2718.4,5.33936]
[1646802665462,0.54042036,2719.4,2718.5,2.31965954]
[1646802665665,0.54042036,2719.4,2718.6,4.41958]
[1646802666265,0.5388802,2719.4,2718.6,4.41958]
[1646802666462,0.5388802,2719.4,2718.8,0.91958]
[1646802667063,1.22358745,2719.2,2718.8,0.91958]
[1646802668409,0.5388802,2719.4,2718.8,0.91958]
[1646802669012,0.56613803,2719.5,2718.8,0.91958]
[1646802669213,0.00549297,2719.5,2719.1,0.91947]
[1646802669413,0.00448454,2719.5,2719.1,0.91947]
[1646802670213,0.97600212,2719.6,2719.1,0.91947]
[1646802671457,0.97600212,2719.6,2719.0,1.83894]
[1646802671858,1.50562962,2719.5,2719.0,1.83894]
[1646802675406,1.50562962,2719.5,2718.8,1.83908]
[1646802677412,1.50562962,2719.5,2718.8,2.13908]
[1646802679660,1.50562962,2719.5,2719.0,0.91953]
[1646802681262,1.50562962,2719.5,2719.0,1.21953]
[1646802681664,0.00767661,2719.8,2719.0,1.21953]
[1646802681665,1.50562962,2719.4,2719.0,1.21953]
[1646802681863,1.50562962,2719.3,2719.0,1.21953]
[1646802682164,0.5610209,2719.8,2719.1,3.8691]
[1646802682364,1.50561087,2719.7,2719.1,3.8691]
[1646802684419,1.50561087,2719.7,2719.1,0.3691]
[1646802684618,1.50561087,2719.7,2719.1,3.5]
[1646802687658,1.50561087,2719.7,2719.0,1.28863]
[1646802687860,1.50561087,2719.7,2718.8,1.83908]
[1646802688063,1.50561087,2719.7,2718.6,5.95663]
[1646802688659,2.73771087,2719.7,2718.6,5.95663]
[1646802688864,1.02066818,2719.2,2718.6,5.95663]
[1646802689068,1.02066818,2719.2,2718.6,1.83923]
[1646802689665,1.23824128,2719.7,2718.6,1.83923]
[1646802689866,1.50572949,2719.6,2718.6,1.83923]
[1646802690708,1.08084626,2719.4,2718.6,1.83923]
[1646802690905,1.50572949,2719.3,2718.6,1.83923]
[1646802691306,1.50572949,2719.3,2718.6,3.18540896]
[1646802691705,1.50572949,2719.3,2718.7,3.5]
[1646802691906,0.00614128,2719.5,2718.9,0.91953]
[1646802692606,0.00614128,2719.5,2718.9,1.21953]
[1646802692806,1.2321,2719.7,2718.9,1.21953]
[1646802693309,1.2321,2719.7,2719.0,1.83896]
[1646802693508,1.23824128,2719.7,2719.1,0.9193812]
[1646802693957,0.00614128,2719.7,2719.2,3.5]
[1646802694159,0.00614128,2719.7,2719.0,1.83896]
[1646802694761,0.56255631,2719.8,2719.0,1.83896]
[1646802695160,1.18414845,2719.7,2719.0,1.83896]
[1646802697508,0.56226508,2719.8,2719.2,0.91947]
[1646802698111,0.56350926,2719.8,2719.2,0.91947]
[1646802698311,0.56226508,2719.8,2719.2,0.91947]
[1646802698510,0.56226508,2719.8,2719.2,1.21947]
[1646802699516,0.56355162,2719.8,2719.2,1.21947]
[1646802699716,0.56230744,2719.8,2719.2,1.21947]
[1646802700016,0.56230744,2719.8,2719.0,1.83896]
[1646802700219,0.56230744,2719.8,2718.7,1.2068]
[1646802700416,0.00128654,2719.8,2718.9,0.9196]
[1646802700618,0.00128654,2719.8,2719.0,3.5]
[1646802700619,0.00257308,2719.8,2719.0,3.5]
[1646802701117,0.00128654,2719.8,2719.0,4.84617896]
[1646802701360,0.00128654,2719.8,2719.2,0.91933]
[1646802701857,0.00128654,2719.8,2719.2,1.21933]
[1646802702055,1.1917,2719.9,2719.2,4.71933]
[1646802702258,1.1124,2720.3,2719.3,0.445]
[1646802702457,1.1124,2720.3,2719.5,1.28834]
[1646802702655,1.1124,2720.3,2719.6,4.3141]
[1646802702856,1.1124,2720.3,2719.8,0.3691]
[1646802703055,1.1124,2720.3,2719.8,0.6691]
[1646802703356,0.00153322,2720.1,2719.8,4.1691]
[1646802703556,0.00153322,2720.1,2720.0,0.3691]
[1646802703964,0.1837,2721.0,2720.2,3.12568]
[1646802704163,0.85660266,2721.6,2720.3,3.945]
[1646802704359,0.85660266,2721.6,2720.4,11.5991]
[1646802704360,0.1837,2721.6,2720.4,11.5991]
[1646802704562,1.14863111,2721.5,2720.6,0.3691]
[1646802704760,1.14863111,2721.5,2720.7,1.83758]
[1646802705014,1.14863111,2721.5,2720.8,0.3]
[1646802705414,1.14863111,2721.5,2720.8,1.21878]
[1646802705613,0.1837,2721.9,2720.8,1.21878]
[1646802705816,0.1837,2721.9,2720.8,3.8]
[1646802706214,0.1837,2721.9,2721.0,0.9187334]
[1646802706414,0.1837,2721.9,2720.7,1.83755]
[1646802706617,0.87665225,2721.4,2720.7,1.83755]
[1646802706820,0.87665225,2721.4,2720.6,1.83787]
[1646802707919,1.1476,2721.7,2720.6,1.83787]
[1646802707920,1.10409037,2720.9,2720.6,1.83787]
[1646802708321,0.00129074,2721.1,2720.6,1.83787]
[1646802709175,5.406,2721.7,2720.6,1.83787]
[1646802709373,0.00129074,2721.0,2720.6,1.83787]
[1646802710373,1.19610034,2721.1,2720.6,1.83787]
[1646802710573,0.00127372,2720.9,2720.6,1.83787]
[1646802711573,1.0815326,2721.5,2720.6,1.83787]
[1646802711776,0.00127372,2720.9,2720.6,5.33787]
[1646802711973,0.00127372,2720.9,2720.6,1.83787]
[1646802712175,0.00127372,2720.9,2720.6,2.13787]
[1646802712705,1.0815326,2721.5,2720.6,2.13787]
[1646802712906,1.50514603,2721.4,2720.8,0.91893]
[1646802713108,0.00127372,2720.9,2720.8,0.91893]
[1646802714014,0.00127372,2720.9,2720.8,4.71893]
[1646802714220,0.00127372,2721.0,2720.9,4.5]
[1646802714417,0.00127372,2721.0,2720.9,10.19687]
[1646802714616,0.00127372,2721.0,2720.9,10.49687]
[1646802714814,0.00127372,2721.0,2720.9,10.86597]
[1646802715014,0.00509412,2721.4,2720.9,10.86597]
[1646802715215,1.16507439,2722.1,2721.2,1.83746]
[1646802715416,1.16507439,2722.1,2721.2,1.83572081]
[1646802715816,1.16507439,2722.1,2721.2,2.13572081]
[1646802716278,1.16507439,2722.1,2721.3,3.5]
[1646802716467,1.16507439,2722.1,2721.3,4.41873]
[1646802718270,1.16507439,2722.1,2721.4,0.8786428]
[1646802718676,1.16507439,2722.1,2721.4,1.1786428]
[1646802719276,0.00152628,2721.8,2721.4,1.1786428]
[1646802720006,0.00152628,2721.8,2721.4,1.3623428]
[1646802720409,0.00152628,2721.7,2721.4,1.3623428]
[1646802720608,0.00152628,2721.7,2721.4,1.1786428]
[1646802722610,0.00152628,2721.7,2721.5,3.5]
[1646802722909,0.00152628,2721.7,2721.5,0.3]
[1646802723309,0.00152628,2721.7,2721.4,1.1786428]
[1646802723964,0.00123671,2721.7,2721.4,1.1786428]
[1646802725166,0.00247342,2721.7,2721.4,1.1786428]
[1646802725365,0.00123671,2721.7,2721.4,1.1786428]
[1646802725968,0.00123671,2721.7,2721.4,0.3]
[1646802726167,0.00123671,2721.7,2721.3,1.21873]
[1646802726567,0.00247342,2721.7,2721.3,1.21873]
[1646802726969,0.00123671,2721.7,2721.3,1.21873]
[1646802727812,0.00127766,2721.6,2721.3,1.21873]
[1646802728613,1.12394751,2721.6,2721.3,1.21873]
[1646802728814,0.00255532,2721.6,2721.3,1.21873]
[1646802729015,0.00127766,2721.6,2721.3,1.21873]
[1646802730020,0.00255532,2721.6,2721.3,1.21873]
[1646802730215,0.00127766,2721.6,2721.3,1.21873]
[1646802730415,0.00127766,2721.6,2721.3,2.1374104]
[1646802731490,0.00237394,2721.6,2721.3,2.1374104]
[1646802731690,0.00109628,2721.6,2721.3,2.1374104]
[1646802732492,0.00219256,2721.6,2721.3,2.1374104]
[1646802732696,0.00109628,2721.6,2721.3,2.1374104]
[1646802733091,0.00109628,2721.6,2721.4,0.1837]
[1646802733694,0.00219256,2721.6,2721.4,0.1837]
[1646802733894,0.00109628,2721.6,2721.4,0.1837]
[1646802734896,0.00129801,2721.6,2721.4,0.1837]
[1646802735116,0.00129801,2721.6,2721.3,1.21873]
[1646802736117,0.00259602,2721.6,2721.3,1.21873]
[1646802736317,0.00129801,2721.6,2721.3,1.21873]
[1646802736616,0.00129801,2721.6,2721.3,2.1374051]
[1646802737023,0.87410133,2721.9,2721.3,2.1374051]
[1646802737224,0.00129801,2721.6,2721.3,2.1374051]
[1646802738523,0.87410133,2721.9,2721.3,2.1374051]
[1646802742074,0.0013701,2721.7,2721.3,2.1374051]
[1646802742814,0.0013701,2721.7,2721.3,1.21873]
[1646802743018,0.0013701,2721.7,2721.3,2.1374023]
[1646802743215,0.0013701,2721.6,2721.3,2.1374023]
[1646802744420,0.0027402,2721.6,2721.3,2.1374023]
[1646802744621,0.0013701,2721.6,2721.3,2.1374023]
[1646802745624,0.00261958,2721.6,2721.3,2.1374023]
[1646802745921,0.00124948,2721.6,2721.3,2.1374023]
[1646802748469,0.00124948,2721.6,2721.3,1.21873]
[1646802748871,0.00124948,2721.6,2721.1,0.1837]
[1646802749071,0.00124948,2721.6,2720.8,1.1834]
[1646802749269,0.00124948,2721.6,2720.4,3.73657896]
[1646802749470,0.00252284,2721.6,2720.4,2.52957896]
[1646802749671,1.50596779,2721.6,2720.4,2.52957896]
[1646802750118,1.50596779,2721.6,2720.6,3.3091572]
[1646802750318,0.93894569,2721.3,2720.6,3.3091572]
[1646802750518,0.93894569,2721.3,2720.7,1.83775]
[1646802751124,0.00127328,2721.4,2720.7,1.83775]
[1646802751727,0.00127328,2721.4,2720.8,0.9188721]
[1646802751929,0.00254651,2721.4,2720.8,0.9188721]
[1646802752127,0.00127323,2721.4,2720.8,1.2188721]
[1646802752928,0.00126877,2721.4,2720.8,1.2188721]
[1646802753228,0.00126877,2721.4,2720.8,1.3107293]
[1646802753430,0.00126877,2721.4,2720.9,0.91871]
[1646802755170,0.00126879,2721.4,2720.9,0.91871]
[1646802756171,1.50476293,2721.5,2720.9,0.91871]
[1646802756372,0.00126977,2721.4,2720.9,0.91871]
[1646802756773,0.00126977,2721.4,2720.8,0.3918572]
[1646802756971,0.00126977,2721.4,2720.8,0.0918572]
[1646802757621,0.00253951,2721.4,2720.8,0.0918572]
[1646802757824,0.00126974,2721.4,2720.8,0.0918572]
[1646802758625,1.50476293,2721.5,2720.8,0.0918572]
[1646802758822,0.00126974,2721.4,2720.8,0.0918572]
[1646802759023,0.00126974,2721.4,2720.6,0.0918572]
[1646802759223,0.97951194,2720.8,2720.6,0.0918572]
[1646802759422,1.36706974,2721.4,2720.6,0.0918572]
[1646802759623,1.50495278,2721.3,2720.6,0.0918572]
[1646802760027,0.00507851,2721.2,2720.6,0.0918572]
[1646802760223,1.50495278,2721.1,2720.6,0.0918572]
[1646802760425,1.50495278,2721.1,2720.7,1.8378]
[1646802760824,0.88382403,2721.2,2720.7,1.8378]
[1646802760825,0.00507851,2721.2,2720.7,1.8378]
[1646802761024,1.1821,2721.4,2720.7,1.8378]
[1646802761286,1.50390551,2721.3,2720.7,1.8378]
[1646802761473,1.50390551,2721.3,2720.6,1.0108872]
[1646802761873,1.50390551,2721.3,2720.6,1.3108872]
[1646802762072,2.70015259,2721.3,2720.6,1.0108872]
[1646802762276,3.5,2721.2,2720.6,0.0918572]
[1646802762473,3.945,2721.2,2720.6,0.0918572]
[1646802762872,4.1287,2721.2,2720.6,0.0918572]
[1646802763879,0.9092159,2720.8,2720.6,0.0918572]
[1646802764077,3.5,2720.7,2720.6,0.0918572]
[1646802764276,0.445,2720.7,2720.6,0.0918572]
[1646802764476,1.6492,2720.7,2720.6,0.0918572]
[1646802765119,1.2042,2720.7,2720.6,0.0918572]
[1646802767519,4.7042,2720.7,2720.6,0.0918572]
[1646802767819,1.2042,2720.7,2720.6,0.0918572]
[1646802770173,3.5,2721.1,2720.6,0.0918572]
[1646802770373,1.1685,2721.1,2720.6,0.0918572]
[1646802770875,1.19897557,2720.7,2720.6,0.0918572]
[1646802773521,1.1685,2721.1,2720.6,0.0918572]
[1646802773722,1.3522,2721.1,2720.6,0.0918572]
[1646802775022,1.0928724,2720.9,2720.6,0.0918572]
[1646802780417,1.2765724,2720.9,2720.6,0.0918572]
[1646802781518,1.50531874,2720.8,2720.6,0.0918572]
[1646802782219,2.66621874,2720.8,2720.6,0.0918572]
[1646802782420,1.1609,2720.8,2720.6,0.0918572]
[1646802785572,1.15967157,2720.8,2720.6,0.0918572]
[1646802787618,1.13548921,2720.7,2720.6,0.0918572]
[1646802789228,2.64097857,2720.7,2720.6,5.72e-05]
[1646802789528,1.68918936,2720.7,2720.6,5.72e-05]
[1646802790129,0.0007428,2720.5,2719.4,3.5]
[1646802790330,0.91949,2720.4,2719.4,3.5]
[1646802790529,1.03136663,2720.1,2719.4,3.5]
[1646802790730,1.03136663,2720.1,2719.3,3.5928]
[1646802790933,1.03136663,2720.1,2719.3,3.2928]
[1646802792877,0.18979096,2720.4,2719.3,6.7928]
[1646802793078,1.5056653,2720.3,2719.3,6.7928]
[1646802793280,0.73776235,2720.4,2719.3,6.7928]
[1646802793780,0.7365677,2720.4,2719.3,6.7928]
[1646802793979,1.01945057,2720.2,2719.3,3.2928]
[1646802795519,1.01945057,2720.2,2719.3,3.29129793]
[1646802797821,0.3,2720.3,2719.5,0.91935]
[1646802798022,0.3,2720.3,2719.4,3.5]
[1646802798322,0.73776246,2720.4,2719.4,3.5]
[1646802798323,0.54797139,2720.4,2719.4,3.5]
[1646802798521,0.55406246,2720.4,2719.4,3.5]
[1646802798978,0.55406246,2720.4,2719.3,4.58169234]
[1646802798979,0.9352461,2720.3,2719.3,4.58169234]
[1646802799179,0.9352461,2720.3,2719.6,1.83845]
[1646802801280,0.9352461,2720.3,2719.2,3.15491025]
[1646802801483,0.9352461,2720.3,2719.2,0.00629025]
[1646802801484,1.50572649,2720.2,2719.2,0.00629025]
[1646802801680,3.6837,2720.1,2719.2,0.00629025]
[1646802801881,1.50572649,2720.0,2718.8,1.34617896]
[1646802802081,3.6837,2719.9,2719.2,0.00629021]
[1646802802281,0.88167991,2719.6,2719.2,0.00629021]
[1646802802921,0.88167991,2719.6,2718.7,1.34617896]
[1646802803221,0.88167991,2719.6,2719.2,0.00629016]
[1646802804221,0.88167991,2719.6,2718.6,6.79625812]
[1646802804421,0.88167991,2719.6,2719.2,0.00631974]
[1646802805121,3.5,2719.5,2719.2,0.00631974]
[1646802805326,3.5,2719.5,2718.6,5.61067896]
[1646802805522,3.5,2719.5,2718.6,4.2645]
[1646802805923,3.5,2719.5,2719.2,0.00631974]
[1646802806568,1.73845713,2719.6,2718.6,4.2645]
[1646802806866,3.5,2719.5,2718.6,4.2645]
[1646802807067,0.85677722,2719.6,2718.7,0.91959]
[1646802807268,0.55677722,2719.6,2718.8,0.9195371]
[1646802807468,0.55677722,2719.6,2718.9,0.3]
[1646802808168,0.55677722,2719.6,2719.1,0.00632307]
[1646802808169,1.5982127,2719.6,2719.1,0.00632307]
[1646802808973,1.5982127,2719.6,2718.6,4.4482]
[1646802808974,1.5982127,2719.6,2718.6,5.79437896]
[1646802809175,1.8982127,2719.6,2718.6,5.79437896]
[1646802809374,1.5982127,2719.6,2719.2,0.00632276]
[1646802811422,1.5982127,2719.6,2718.7,0.91959]
[1646802811623,5.0982127,2719.6,2719.2,0.00627155]
[1646802812025,4.54143548,2719.6,2719.2,0.00627155]
[1646802812523,4.54143548,2719.6,2718.6,4.2645]
[1646802812724,4.54143548,2719.6,2718.6,4.1645]
[1646802812923,4.54143548,2719.6,2719.2,0.00627155]
[1646802813127,1.04143548,2719.6,2719.2,0.00627155]
[1646802813325,4.34795175,2719.7,2719.2,0.00627155]
[1646802813778,4.23165175,2719.7,2718.6,4.1645]
[1646802813971,4.23165175,2719.7,2719.2,0.00627156]
[1646802814973,4.23165175,2719.7,2718.6,4.1645]
[1646802815173,0.87687628,2719.5,2719.2,0.00631472]
[1646802816172,0.87687628,2719.5,2718.6,4.1645]
[1646802816374,3.5,2719.4,2719.2,0.00631471]
[1646802816574,1.17687628,2719.5,2719.2,0.00631471]
[1646802816776,1.79664628,2719.5,2719.2,0.00631471]
[1646802817076,2.09664628,2719.5,2719.2,0.00631471]
[1646802817374,3.5,2719.4,2718.6,4.1645]
[1646802817823,3.5,2719.4,2719.2,0.00631471]
[1646802818023,4.7221,2719.4,2719.2,0.00631471]
[1646802818428,3.5,2719.3,2719.2,1.471e-05]
[1646802818625,3.5,2719.3,2718.3,2.89800769]
[1646802818827,0.91995,2719.2,2718.1,0.1837]
[1646802819229,3.5,2719.1,2718.1,0.1837]
[1646802819429,0.91995,2719.2,2718.1,0.1837]
[1646802819628,0.97798986,2718.9,2718.1,0.1837]
[1646802820227,3.5,2719.1,2718.2,0.91979]
[1646802820228,1.2122,2719.1,2718.2,0.91979]
[1646802820627,1.2122,2719.1,2718.2,1.21979]
[1646802821273,1.2122,2719.1,2718.3,2.75952761]
[1646802821672,1.2122,2719.1,2718.3,3.05952761]
[1646802821872,0.73185175,2719.7,2718.6,0.91962]
[1646802822074,0.54795175,2719.7,2718.6,0.91962]
[1646802822272,0.54795175,2719.7,2718.8,1.83901]
[1646802822673,0.54795175,2719.7,2718.8,2.13901]
[1646802822872,1.59030584,2719.7,2718.8,3.14954823]
[1646802823373,0.1837,2719.8,2718.9,0.91951]
[1646802823775,0.18523853,2719.8,2719.0,0.00674985]
[1646802824677,0.1837,2719.8,2719.0,0.3]
[1646802824879,0.18523862,2719.8,2719.0,0.30674987]
[1646802825920,0.1837,2719.8,2719.0,0.3]
[1646802826123,0.18523862,2719.8,2719.0,0.00674987]
[1646802826922,0.1837,2719.8,2718.9,1.8389903]
[1646802827322,0.18523862,2719.8,2719.0,0.30652207]
[1646802827926,0.18523862,2719.8,2719.0,0.00652207]
[1646802828126,0.1837,2719.8,2718.8,2.13901]
[1646802828523,0.18523862,2719.8,2719.0,0.00652207]
[1646802829376,0.18523862,2719.8,2718.8,2.13901]
[1646802829377,3.5,2719.8,2718.8,2.13901]
[1646802829573,0.00153862,2719.8,2719.0,0.00652207]
[1646802829774,1.50767027,2719.8,2719.0,0.00652207]
[1646802829975,5.00767027,2719.8,2719.0,0.00652207]
[1646802830175,1.50613165,2719.7,2719.0,0.00652207]
[1646802830575,1.50613165,2719.7,2718.8,1.83901]
[1646802830881,1.50613165,2719.7,2719.0,0.00632617]
[1646802831982,1.50613165,2719.7,2719.0,0.01265233]
[1646802832181,1.50613165,2719.7,2719.0,0.00632616]
[1646802832380,2.42576165,2719.7,2719.0,0.00632616]
[1646802832624,0.95648698,2719.4,2719.0,0.00632616]
[1646802833028,0.95648698,2719.4,2718.8,1.83901]
[1646802833424,0.95648698,2719.4,2719.0,0.00632616]
[1646802834531,0.95648698,2719.4,2719.0,0.01264007]